[Event "22nd Hoogeveen Open 2018"]
[Site "Hoogeveen"]
[Date "2018.10.20"]
[Round "1"]
[White "Elgersma, Simon"]
[Black "Oord, Raymon"]
[Result "1-0"]
[ECO "C42"]
[WhiteElo "2237"]
[BlackElo "1900"]
[Annotator "NA"]
[PlyCount "87"]
[EventDate "2018.10.20"]
[EventType "swiss"]
[EventCountry "NED"]
[SourceTitle "playchess.com"]
[Source "ChessBase"]
[SourceQuality "1"]
[TimeControl "40/5400+30:1800+30"]

1. e4 {[%emt 0:00:00]} e5 {[%emt 0:00:00]} 2. Nf3 {[%emt 0:00:00]} Nf6 {[%emt 0:00:00]} 3. Nxe5 {[%emt 0:00:10]} d6 {[%emt 0:00:00]} 4. Nf3 {[%emt 0:00:05]} Nxe4 {[%emt 0:00:00]} 5. Nc3 {[%emt 0:00:05]} Nf6 {[%emt 0:01:07]} 6. d4 {[%emt 0:00:09]} Bg4 {[%emt 0:02:50]} 7. h3 {[%emt 0:03:02]} Bh5 {[%emt 0:05:16]} 8. Be2 {[%emt 0:05:46]} Be7 {[%emt 0:01:28]} 9. d5 {[%emt 0:12:30]} Nbd7 {[%emt 0:16:51]} 10. O-O {[%emt 0:02:25]} O-O {[%emt 0:07:01]} 11. Be3 {[%emt 0:12:24]} Re8 {[%emt 0:09:55]} 12. g4 {[%emt 0:13:15]} Bg6 {[%emt 0:04:34]} 13. Nd2 {[%emt 0:01:36]} Bf8 $11 {[%emt 0:17:35]} 14. Bd4 {[%emt 0:06:16]} Ne4 {[%emt 0:15:05]} 15. Ndxe4 {[%emt 0:13:20]} Bxe4 {[%emt 0:00:15]} 16. Nxe4 {[%emt 0:05:26]} Rxe4 {[%emt 0:00:05]} 17. f3 {[%emt 0:03:12]} Re7 {[%emt 0:01:12]} 18. f4 {[%emt 0:03:21]} Qe8 {[%emt 0:06:50]} 19. Bf3 {[%emt 0:02:24]} Nb6 {[%emt 0:00:54]} 20. b3 {[%emt 0:01:04]} Nd7 {[%emt 0:00:52]} 21. Qd2 {[%emt 0:03:53]} f6 {[%emt 0:02:02]} 22. Kg2 {[%emt 0:01:49]} Qf7 {[%emt 0:00:57]} 23. h4 {[%emt 0:04:19]} Rae8 {[%emt 0:01:40]} 24. a4 {[%emt 0:00:49]} a6 {[%emt 0:00:17]} 25. a5 {[%emt 0:00:33]} Nc5 {[%emt 0:02:15]} 26. Bxc5 {[%emt 0:01:34]} dxc5 {[%emt 0:00:02]} 27. d6 {[%emt 0:00:26]} cxd6 {[%emt 0:00:53]} 28. Bd5 {[%emt 0:00:17]} Re2+ {[%emt 0:00:29]} 29. Rf2 {[%emt 0:00:02]} Rxd2 {[%emt 0:00:27]} 30. Bxf7+ {[%emt 0:00:06]} Kxf7 {[%emt 0:00:18]} 31. Rxd2 {[%emt 0:00:02]} Re4 {[%emt 0:01:30]} 32. Kf3 {[%emt 0:00:36]} Rb4 {[%emt 0:02:00]} 33. Ra4 {[%emt 0:02:09]} Rxa4 {[%emt 0:00:50]} 34. bxa4 {[%emt 0:00:02]} Ke6 {[%emt 0:00:32]} 35. c4 {[%emt 0:00:46]} Kd7 {[%emt 0:00:27]} 36. Ke4 {[%emt 0:00:30]} Be7 {[%emt 0:00:35]} 37. Rb2 {[%emt 0:00:21]} Kc8 {[%emt 0:00:42]} 38. Kd5 {[%emt 0:02:02]} Bd8 {[%emt 0:00:29]} 39. Re2 {[%emt 0:01:00]} Kd7 {[%emt 0:00:30]} 40. Rb2 {[%emt 0:01:05]} Kc7 {[%emt 0:00:02]} 41. Rb6 {[%emt 0:31:06]} Kc8 {[%emt 0:02:56]} 42. Rxd6 {[%emt 0:00:00]} Bxa5 {[%emt 0:00:50]} 43. Ke6 {[%emt 0:00:00]} Bc7 {[%emt 0:06:42]} 44. Rd7 {[%emt 0:00:00]} 1-0

[Event "22nd Hoogeveen Open 2018"]
[Site "Hoogeveen"]
[Date "2018.10.20"]
[Round "1"]
[White "Blagojevic, Tijana"]
[Black "Kutchoukov, Daniel"]
[Result "1-0"]
[ECO "B12"]
[WhiteElo "2232"]
[BlackElo "1882"]
[Annotator "NA"]
[PlyCount "57"]
[EventDate "2018.10.20"]
[EventType "swiss"]
[EventCountry "NED"]
[SourceTitle "playchess.com"]
[Source "ChessBase"]
[SourceQuality "1"]
[TimeControl "40/5400+30:1800+30"]

1. e4 {[%emt 0:00:00]} c6 {[%emt 0:00:00]} 2. d4 {[%emt 0:00:00]} d5 {[%emt 0:00:00]} 3. e5 {[%emt 0:00:00]} Bf5 {[%emt 0:00:00]} 4. Nd2 {[%emt 0:00:00]} e6 {[%emt 0:00:00]} 5. Nb3 {[%emt 0:00:11]} Nd7 {[%emt 0:04:41]} 6. Nf3 {[%emt 0:00:16]} Ne7 {[%emt 0:05:28]} 7. Be2 $11 {[%emt 0:00:11]} h6 {[%emt 0:17:08]} 8. O-O {[%emt 0:00:39]} Bh7 {[%emt 0:02:30]} 9. a4 {[%emt 0:02:58]} Nf5 {[%emt 0:13:24]} 10. a5 {[%emt 0:04:03]} g5 {[%emt 0:00:48]} 11. Ne1 {[%emt 0:01:56]} Be7 {[%emt 0:03:06]} 12. Bd2 {[%emt 0:06:14]} O-O {[%emt 0:05:39]} 13. Nd3 {[%emt 0:07:08]} Qc7 {[%emt 0:07:09]} 14. Rc1 {[%emt 0:03:14]} f6 {[%emt 0:05:39]} 15. exf6 {[%emt 0:10:24]} Bxf6 {[%emt 0:01:43]} 16. Bb4 {[%emt 0:02:17]} Rfd8 {[%emt 0:25:17]} 17. Bg4 {[%emt 0:05:15]} e5 {[%emt 0:02:09]} 18. Nbc5 {[%emt 0:10:39]} Nxc5 {[%emt 0:01:06]} 19. Nxc5 {[%emt 0:00:24]} Re8 {[%emt 0:02:58]} 20. Qf3 {[%emt 0:20:33]} e4 {[%emt 0:00:09]} 21. Qh3 {[%emt 0:00:29]} Nxd4 {[%emt 0:01:03]} 22. c3 {[%emt 0:00:51]} Nb5 {[%emt 0:00:32]} 23. Qxh6 {[%emt 0:06:23]} Qg7 {[%emt 0:00:27]} 24. Qxg7+ {[%emt 0:01:44]} Kxg7 {[%emt 0:00:21]} 25. Nxb7 {[%emt 0:00:11]} Rab8 {[%emt 0:00:39]} 26. Bd7 {[%emt 0:01:38]} Rh8 {[%emt 0:00:33]} 27. Bxc6 {[%emt 0:00:29]} Nc7 {[%emt 0:00:30]} 28. Bd6 {[%emt 0:00:46]} Rhc8 {[%emt 0:00:29]} 29. Bd7 {[%emt 0:01:08]} 1-0

[Event "22nd Hoogeveen Open 2018"]
[Site "Hoogeveen"]
[Date "2018.10.20"]
[Round "1"]
[White "Elgersma, Onno"]
[Black "Brands, Kevin"]
[Result "1-0"]
[ECO "B90"]
[WhiteElo "2223"]
[BlackElo "1862"]
[Annotator "NA"]
[PlyCount "39"]
[EventDate "2018.10.20"]
[EventType "swiss"]
[EventCountry "NED"]
[SourceTitle "playchess.com"]
[Source "ChessBase"]
[SourceQuality "1"]
[TimeControl "40/5400+30:1800+30"]

1. e4 {[%emt 0:00:00]} c5 {[%emt 0:00:00]} 2. Nf3 {[%emt 0:00:00]} d6 {[%emt 0:00:00]} 3. d4 {[%emt 0:00:00]} cxd4 {[%emt 0:00:00]} 4. Nxd4 {[%emt 0:00:02]} Nf6 $14 {[%emt 0:00:00]} 5. Nc3 {[%emt 0:00:24]} a6 {[%emt 0:00:00]} 6. h3 {[%emt 0:00:21]} Bd7 {[%emt 0:03:04]} 7. g4 {[%emt 0:00:59]} h6 {[%emt 0:00:25]} 8. Bg2 {[%emt 0:01:46]} g6 {[%emt 0:01:52]} 9. Be3 {[%emt 0:02:04]} Bg7 {[%emt 0:02:02]} 10. Qd2 {[%emt 0:02:10]} Nc6 {[%emt 0:03:19]} 11. f4 {[%emt 0:05:39]} Nxd4 {[%emt 0:07:45]} 12. Bxd4 {[%emt 0:00:21]} e5 {[%emt 0:01:35]} 13. Be3 {[%emt 0:02:33]} O-O {[%emt 0:06:17]} 14. f5 {[%emt 0:05:56]} Bc6 {[%emt 0:08:52]} 15. O-O-O {[%emt 0:02:44]} Qa5 {[%emt 0:17:05]} 16. Bxh6 {[%emt 0:08:41]} Rac8 {[%emt 0:14:43]} 17. Kb1 {[%emt 0:09:52]} Bxh6 {[%emt 0:10:17]} 18. Qxh6 {[%emt 0:00:17]} b5 {[%emt 0:08:22]} 19. g5 {[%emt 0:02:09]} Nh5 {[%emt 0:01:01]} 20. fxg6 {[%emt 0:00:25]} 1-0

[Event "22nd Hoogeveen Open 2018"]
[Site "Hoogeveen"]
[Date "2018.10.20"]
[Round "1"]
[White "Zarkovic, Mila"]
[Black "Wedda, Dries"]
[Result "1/2-1/2"]
[ECO "B92"]
[WhiteElo "2213"]
[BlackElo "2216"]
[Annotator "NA"]
[PlyCount "60"]
[EventDate "2018.10.20"]
[EventType "swiss"]
[EventCountry "NED"]
[SourceTitle "playchess.com"]
[Source "ChessBase"]
[SourceQuality "1"]
[TimeControl "40/5400+30:1800+30"]

1. e4 {[%emt 0:00:00]} c5 {[%emt 0:00:00]} 2. Nf3 {[%emt 0:00:00]} d6 {[%emt 0:00:00]} 3. d4 {[%emt 0:00:00]} cxd4 {[%emt 0:00:00]} 4. Nxd4 {[%emt 0:00:00]} Nf6 $14 {[%emt 0:00:00]} 5. Nc3 {[%emt 0:00:00]} a6 {[%emt 0:00:00]} 6. Be2 {[%emt 0:00:49]} e5 {[%emt 0:00:00]} 7. Nb3 {[%emt 0:00:07]} Be7 {[%emt 0:00:18]} 8. O-O {[%emt 0:00:08]} O-O {[%emt 0:00:23]} 9. Bf3 {[%emt 0:00:18]} Be6 {[%emt 0:07:39]} 10. Re1 {[%emt 0:00:09]} Nbd7 {[%emt 0:06:10]} 11. a4 {[%emt 0:00:10]} b6 {[%emt 0:09:43]} 12. Nd2 {[%emt 0:03:01]} Nb8 {[%emt 0:10:25]} 13. Nf1 {[%emt 0:07:31]} Nc6 {[%emt 0:00:33]} 14. Bg5 {[%emt 0:14:32]} Qc7 {[%emt 0:04:37]} 15. Ne3 {[%emt 0:10:01]} Nb4 {[%emt 0:05:54]} 16. Re2 {[%emt 0:24:49]} Rad8 {[%emt 0:10:20]} 17. Bxf6 {[%emt 0:15:49]} Bxf6 {[%emt 0:00:54]} 18. Ncd5 {[%emt 0:00:49]} Nxd5 {[%emt 0:00:27]} 19. Nxd5 {[%emt 0:00:43]} Bxd5 {[%emt 0:00:09]} 20. Qxd5 {[%emt 0:00:13]} Qc5 {[%emt 0:02:55]} 21. Rd1 {[%emt 0:01:48]} Qxd5 {[%emt 0:02:01]} 22. Rd3 {[%emt 0:00:13]} Qd4 23. Rxd4 {[%emt 0:00:30]} Be7 {[%emt 0:00:39]} 24. Rd5 {[%emt 0:02:59]} Rc8 {[%emt 0:02:23]} 25. c4 {[%emt 0:04:07]} Rc5 {[%emt 0:08:24]} 26. b3 {[%emt 0:00:24]} Re8 {[%emt 0:07:05]} 27. Red2 Rec8 {[%emt 0:00:07]} 28. Be2 {[%emt 0:04:39]} Rxd5 {[%emt 0:05:12]} 29. Rxd5 {[%emt 0:00:11]} Rc5 {[%emt 0:01:26]} 30. b4 {[%emt 0:05:22]} Rxd5 {[%emt 0:00:16]} 1/2-1/2

[Event "22nd Hoogeveen Open 2018"]
[Site "Hoogeveen"]
[Date "2018.10.20"]
[Round "1"]
[White "Konings, Frans"]
[Black "Boghossian, Wahe"]
[Result "1-0"]
[ECO "A43"]
[WhiteElo "2195"]
[BlackElo "1748"]
[Annotator "NA"]
[PlyCount "43"]
[EventDate "2018.10.20"]
[EventType "swiss"]
[EventCountry "NED"]
[SourceTitle "playchess.com"]
[Source "ChessBase"]
[SourceQuality "1"]
[TimeControl "40/5400+30:1800+30"]

1. d4 {[%emt 0:00:00]} Nf6 {[%emt 0:00:00]} 2. c4 {[%emt 0:00:00]} e6 {[%emt 0:00:00]} 3. Nc3 {[%emt 0:00:13]} c5 {[%emt 0:00:00]} 4. d5 {[%emt 0:00:28]} d6 {[%emt 0:00:05]} 5. e4 {[%emt 0:01:53]} exd5 {[%emt 0:00:13]} 6. exd5 {[%emt 0:01:40]} a6 {[%emt 0:10:23]} 7. a4 {[%emt 0:01:01]} Nbd7 $11 {[%emt 0:00:53]} 8. Nf3 {[%emt 0:00:15]} g6 {[%emt 0:00:56]} 9. Bd3 {[%emt 0:00:21]} Bg7 {[%emt 0:00:26]} 10. O-O {[%emt 0:00:08]} O-O {[%emt 0:00:53]} 11. Bg5 {[%emt 0:00:07]} Qc7 {[%emt 0:11:08]} 12. h3 {[%emt 0:03:20]} Re8 {[%emt 0:04:06]} 13. Qd2 {[%emt 0:00:53]} Ne5 {[%emt 0:12:38]} 14. Nxe5 {[%emt 0:00:21]} Rxe5 {[%emt 0:03:04]} 15. f4 {[%emt 0:01:02]} Re8 {[%emt 0:02:22]} 16. f5 {[%emt 0:06:28]} Nd7 {[%emt 0:26:41]} 17. Ne4 {[%emt 0:13:49]} Be5 {[%emt 0:14:48]} 18. f6 {[%emt 0:01:48]} Qb6 {[%emt 0:02:42]} 19. Bh4 {[%emt 0:00:13]} Qxb2 {[%emt 0:00:33]} 20. Qh6 {[%emt 0:00:17]} Bxf6 {[%emt 0:05:16]} 21. Nxf6+ {[%emt 0:00:10]} Nxf6 {[%emt 0:00:25]} 22. Bxf6 {[%emt 0:00:06]} 1-0

[Event "22nd Hoogeveen Open 2018"]
[Site "Hoogeveen"]
[Date "2018.10.20"]
[Round "1"]
[White "Mijnheer, Peter"]
[Black "Van Delft, Merijn"]
[Result "0-1"]
[ECO "B92"]
[WhiteElo "2092"]
[BlackElo "2381"]
[Annotator "NA"]
[PlyCount "82"]
[EventDate "2018.10.20"]
[EventType "swiss"]
[EventCountry "NED"]
[SourceTitle "playchess.com"]
[Source "ChessBase"]
[SourceQuality "1"]
[TimeControl "40/5400+30:1800+30"]

1. e4 {[%emt 0:00:00]} c5 {[%emt 0:00:00]} 2. Nf3 {[%emt 0:00:00]} d6 {[%emt 0:00:00]} 3. d4 {[%emt 0:00:00]} cxd4 {[%emt 0:00:00]} 4. Nxd4 {[%emt 0:00:00]} Nf6 {[%emt 0:00:13]} 5. Nc3 {[%emt 0:00:01]} a6 {[%emt 0:00:05]} 6. Be2 {[%emt 0:00:20]} e5 {[%emt 0:00:35]} 7. Nb3 {[%emt 0:00:05]} Be7 {[%emt 0:00:40]} 8. O-O {[%emt 0:00:07]} O-O {[%emt 0:00:11]} 9. Re1 {[%emt 0:00:13]} Be6 {[%emt 0:03:37]} 10. Bf1 {[%emt 0:00:25]} Nbd7 {[%emt 0:01:16]} 11. Nd5 {[%emt 0:00:47] LiveBook: 52 Games} Bxd5 {[%emt 0:01:37] B92: Sicilian Najdorf: 6 Be2} 12. exd5 {[%emt 0:00:06]} Ne8 {[%emt 0:00:28]} 13. a4 $146 {[%emt 0:03:50]} ({Predecessor:} 13. c4 Rc8 14. Bd2 b6 15. Nc1 f5 16. b4 Nef6 17. Nb3 Ne4 18. a4 Nxd2 19. Qxd2 {1-0 (81) Jansa,V (2455)-Vlasak,L (2336) Czechia 2014}) 13... b6 {[%emt 0:06:42]} 14. a5 {[%emt 0:09:17]} b5 {[%emt 0:00:37]} 15. c4 {[%emt 0:00:25]} bxc4 {[%emt 0:01:11]} 16. Bxc4 {[%emt 0:00:09]} Qc7 {[%emt 0:04:23]} 17. Qe2 {[%emt 0:07:45]} Qb7 {[%emt 0:05:42]} 18. Nd4 {[%emt 0:20:52]} Bf6 {[%emt 0:09:00]} 19. Nc6 {[%emt 0:03:41]} Nc7 {[%emt 0:01:48]} 20. Ra4 {[%emt 0:04:13]} Rac8 {[%emt 0:12:41]} 21. Rb4 {[%emt 0:12:33]} Qa8 {[%emt 0:00:12]} 22. Qg4 {[%emt 0:07:14]} Nb8 {[%emt 0:07:40]} 23. Rb6 {[%emt 0:09:38]} Nxc6 {[%emt 0:01:29]} 24. Rxc6 {[%emt 0:01:26]} Nb5 {[%emt 0:01:36]} 25. Bxb5 {[%emt 0:00:57]} axb5 {[%emt 0:00:10] [#]} 26. Rxd6 {[%emt 0:00:09]} (26. Rxc8 $1 $16 Rxc8 27. Be3) 26... Rc4 {[%emt 0:08:17]} 27. Qe2 {[%emt 0:02:49]} Qxa5 {[%emt 0:01:39]} 28. b3 {[%emt 0:00:27]} Rc2 {[%emt 0:03:00]} 29. Qd1 {[%emt 0:02:24]} Rfc8 {[%emt 0:01:45]} 30. Be3 {[%emt 0:01:02]} Qb4 {[%emt 0:08:09]} 31. Rb6 {[%emt 0:03:54]} Rb2 {[%emt 0:04:17]} 32. Rxf6 {[%emt 0:00:32]} gxf6 $17 {[%emt 0:00:41]} 33. h3 {[%emt 0:04:55]} Rd8 {[%emt 0:03:07]} 34. Rf1 {[%emt 0:00:47]} Qe4 {[%emt 0:04:29]} 35. d6 {[%emt 0:00:26]} Kh8 {[%emt 0:01:58]} 36. d7 {[%emt 0:01:42]} Qc6 {[%emt 0:04:07]} 37. Qa1 {[%emt 0:02:29]} Rc2 {[%emt 0:00:58]} 38. Rd1 {[%emt 0:01:12]} Rxd7 {[%emt 0:02:31]} 39. Rxd7 {[%emt 0:00:22]} Qxd7 {[%emt 0:00:09]} 40. Qa8+ {[%emt 0:00:07]} Rc8 {[%emt 0:01:11]} 41. Qe4 {[%emt 0:05:11]} Qc6 {[%emt 0:04:24]} 0-1

[Event "22nd Hoogeveen Open 2018"]
[Site "Hoogeveen"]
[Date "2018.10.20"]
[Round "1"]
[White "Hoffman, Ron"]
[Black "Waardenburg, Feline"]
[Result "1/2-1/2"]
[ECO "D02"]
[WhiteElo "2060"]
[BlackElo "1761"]
[Annotator "NA"]
[PlyCount "48"]
[EventDate "2018.10.20"]
[EventType "swiss"]
[EventCountry "NED"]
[SourceTitle "playchess.com"]
[Source "ChessBase"]
[SourceQuality "1"]
[TimeControl "40/5400+30:1800+30"]

1. d4 {[%emt 0:00:00]} Nf6 {[%emt 0:00:00]} 2. Bf4 {[%emt 0:00:00]} g6 {[%emt 0:00:21]} 3. e3 {[%emt 0:00:00]} Bg7 {[%emt 0:00:31]} 4. Nf3 {[%emt 0:00:05]} d5 {[%emt 0:01:32]} 5. Be2 {[%emt 0:00:31]} O-O {[%emt 0:01:53]} 6. O-O {[%emt 0:00:21]} b6 {[%emt 0:10:29]} 7. Nbd2 {[%emt 0:06:25]} Bb7 {[%emt 0:09:50]} 8. c4 {[%emt 0:04:10]} Nbd7 {[%emt 0:00:00]} 9. h3 {[%emt 0:05:17]} c5 {[%emt 0:04:41]} 10. Ne5 {[%emt 0:10:38]} cxd4 {[%emt 0:14:26]} 11. exd4 {[%emt 0:00:18]} dxc4 {[%emt 0:05:47]} 12. Bxc4 {[%emt 0:04:38]} Nd5 {[%emt 0:02:47]} 13. Bh2 {[%emt 0:01:24]} Rc8 {[%emt 0:01:50]} 14. Qb3 {[%emt 0:09:10]} Nxe5 {[%emt 0:04:33]} 15. dxe5 {[%emt 0:01:22]} e6 {[%emt 0:03:12]} 16. Ne4 {[%emt 0:20:15]} Ba8 {[%emt 0:06:51]} 17. Nd6 {[%emt 0:02:17]} Rc5 {[%emt 0:02:14]} 18. Ba6 {[%emt 0:03:41]} Qe7 {[%emt 0:04:15]} 19. Bd3 {[%emt 0:08:18]} Nc7 {[%emt 0:03:07]} 20. Rfe1 {[%emt 0:08:53]} Rd8 {[%emt 0:01:45]} 21. Qa3 {[%emt 0:03:18]} Ra5 {[%emt 0:00:56]} 22. Qc3 {[%emt 0:03:36]} Rc5 {[%emt 0:00:21]} 23. Qa3 {[%emt 0:00:02]} Ra5 {[%emt 0:00:16]} 24. Qc3 {[%emt 0:00:16]} Rc5 {[%emt 0:00:21]} 1/2-1/2

[Event "22nd Hoogeveen Open 2018"]
[Site "Hoogeveen"]
[Date "2018.10.20"]
[Round "1"]
[White "Boersma, Jan"]
[Black "Colijn, Stefan"]
[Result "0-1"]
[ECO "C62"]
[WhiteElo "2047"]
[BlackElo "2340"]
[Annotator "NA"]
[PlyCount "55"]
[EventDate "2018.10.20"]
[EventType "swiss"]
[EventCountry "NED"]
[SourceTitle "playchess.com"]
[Source "ChessBase"]
[SourceQuality "1"]
[TimeControl "40/5400+30:1800+30"]

1. e4 {[%emt 0:00:00]} e5 {[%emt 0:00:00]} 2. Nc3 {[%emt 0:00:00]} Nc6 {[%emt 0:00:21]} 3. Nf3 {[%emt 0:00:00]} Nf6 {[%emt 0:00:08]} 4. Bb5 {[%emt 0:00:02]} d6 {[%emt 0:00:32] LiveBook: 218 Games} 5. d4 {[%emt 0:00:36]} exd4 {[%emt 0:00:15]} 6. Qxd4 {[%emt 0:00:06]} Bd7 {[%emt 0:01:17]} 7. Bxc6 {[%emt 0:00:07]} bxc6 {[%emt 0:03:01]} 8. Bg5 {[%emt 0:03:39]} Be7 {[%emt 0:03:56]} 9. O-O-O {[%emt 0:06:40]} O-O {[%emt 0:08:32] C62: Ruy Lopez: Steinitz Defence} (9... c5 10. Qd3 {½-½ (10) Kalugin,S (2472)-Olenin,N (2408) Alushta 2000}) 10. e5 {[%emt 0:12:50]} Ne8 {[%emt 0:03:18]} 11. Bxe7 {[%emt 0:07:39]} Qxe7 {[%emt 0:00:11]} 12. Rhe1 {[%emt 0:06:55]} Be6 {[%emt 0:12:39]} 13. Qb4 $146 {[%emt 0:00:57]} ({Predecessor:} 13. Qe3 d5 14. Na4 Bg4 15. Rd4 Bxf3 16. gxf3 f5 17. h4 {½-½ (41) Mrva,V (2130)-Kopnicky,F (1960) Tatranske Zruby 2010}) 13... Rd8 {[%emt 0:04:49]} 14. Qb7 {[%emt 0:14:09]} dxe5 {[%emt 0:14:04]} 15. Qxc6 {[%emt 0:04:48]} Rxd1+ {[%emt 0:04:36]} 16. Rxd1 {[%emt 0:00:18]} Nd6 {[%emt 0:00:25]} 17. Nd5 {[%emt 0:06:19]} Bxd5 $1 {[%emt 0:02:18]} 18. Qxd5 $11 {[%emt 0:00:12]} e4 {[%emt 0:06:15]} 19. Nd4 {[%emt 0:00:58]} Qh4 {[%emt 0:00:51]} 20. c4 {[%emt 0:16:03]} Qxf2 {[%emt 0:05:05]} 21. c5 {[%emt 0:00:34]} Qf4+ {[%emt 0:01:20]} 22. Kb1 {[%emt 0:02:12]} Ne8 {[%emt 0:00:16]} 23. Nf5 {[%emt 0:04:24]} Nf6 {[%emt 0:11:23]} 24. Ne7+ {[%emt 0:00:12]} Kh8 {[%emt 0:00:01]} 25. Qxf7 {[%emt 0:00:12]} Rxf7 {[%emt 0:00:27]} 26. Rd8+ {[%emt 0:00:02]} Ne8 {[%emt 0:00:10]} 27. Rxe8+ {[%emt 0:00:04]} Rf8 {[%emt 0:00:07]} 28. c6 {[%emt 0:00:51]} 0-1

[Event "22nd Hoogeveen Open 2018"]
[Site "Hoogeveen"]
[Date "2018.10.20"]
[Round "1"]
[White "Biermann, Florian"]
[Black "Tomilova, Elena"]
[Result "0-1"]
[ECO "A12"]
[WhiteElo "2024"]
[BlackElo "2328"]
[Annotator "NA"]
[PlyCount "68"]
[EventDate "2018.10.20"]
[EventType "swiss"]
[EventCountry "NED"]
[SourceTitle "playchess.com"]
[Source "ChessBase"]
[SourceQuality "1"]
[TimeControl "40/5400+30:1800+30"]

1. c4 {[%emt 0:00:00]} c6 {[%emt 0:00:00]} 2. b3 {[%emt 0:01:33]} d5 {[%emt 0:00:11]} 3. Bb2 {[%emt 0:01:06]} Nf6 {[%emt 0:01:18]} 4. Nf3 {[%emt 0:00:13]} Bg4 {[%emt 0:01:09]} 5. e3 {[%emt 0:09:03]} e6 {[%emt 0:00:48]} 6. Be2 {[%emt 0:02:31]} Nbd7 {[%emt 0:01:51]} 7. d4 {[%emt 0:05:03]} Bb4+ {[%emt 0:02:59]} 8. Nfd2 {[%emt 0:12:42]} Bxe2 {[%emt 0:02:01]} 9. Qxe2 {[%emt 0:00:33]} O-O {[%emt 0:00:27]} 10. O-O {[%emt 0:00:32]} a5 {[%emt 0:03:10]} 11. a3 {[%emt 0:02:30]} Bxd2 {[%emt 0:00:55]} 12. Nxd2 {[%emt 0:01:25]} Qb6 {[%emt 0:00:34]} 13. a4 {[%emt 0:05:51]} Ne4 {[%emt 0:05:28]} 14. Nxe4 {[%emt 0:03:45]} dxe4 {[%emt 0:00:41]} 15. Qc2 {[%emt 0:00:57]} f5 {[%emt 0:00:50]} 16. Ba3 {[%emt 0:09:40]} Rfe8 {[%emt 0:01:32]} 17. Rfd1 {[%emt 0:11:17]} Qc7 $14 {[%emt 0:02:15]} 18. Rab1 {[%emt 0:04:05]} Nf6 {[%emt 0:03:31]} 19. h3 {[%emt 0:00:36]} g5 {[%emt 0:06:14]} 20. b4 {[%emt 0:02:00]} g4 {[%emt 0:01:04]} 21. Bb2 {[%emt 0:06:06]} axb4 {[%emt 0:09:59]} 22. d5 {[%emt 0:02:29]} e5 {[%emt 0:00:18]} 23. d6 {[%emt 0:01:44]} Qd7 {[%emt 0:02:51]} 24. hxg4 {[%emt 0:02:45]} Nxg4 {[%emt 0:01:11]} 25. c5 {[%emt 0:01:08]} Kh8 {[%emt 0:08:41]} 26. g3 {[%emt 0:02:21]} Qg7 {[%emt 0:03:05]} 27. Kg2 {[%emt 0:01:19]} Re6 {[%emt 0:11:54]} 28. Qc4 {[%emt 0:02:19]} Rg6 {[%emt 0:01:23]} 29. Qb3 {[%emt 0:01:26]} Rg8 {[%emt 0:00:52]} 30. d7 {[%emt 0:02:57]} Rd8 {[%emt 0:00:16]} 31. Ba1 {[%emt 0:02:46]} Rh6 {[%emt 0:03:03]} 32. Kg1 {[%emt 0:00:38]} Rh1+ {[%emt 0:02:07]} 33. Kg2 {[%emt 0:01:09]} Rh2+ {[%emt 0:00:09]} 34. Kg1 {[%emt 0:00:26]} Qh6 {[%emt 0:00:15]} 0-1

[Event "22nd Hoogeveen Open 2018"]
[Site "Hoogeveen"]
[Date "2018.10.20"]
[Round "1"]
[White "Winkels, Marcel"]
[Black "Den Hartog, Marijn"]
[Result "1-0"]
[ECO "C41"]
[WhiteElo "1935"]
[BlackElo "2296"]
[Annotator "NA"]
[PlyCount "99"]
[EventDate "2018.10.20"]
[EventType "swiss"]
[EventCountry "NED"]
[SourceTitle "playchess.com"]
[Source "ChessBase"]
[SourceQuality "1"]
[TimeControl "40/5400+30:1800+30"]

1. e4 {[%emt 0:00:00]} e5 {[%emt 0:00:00]} 2. Nf3 {[%emt 0:00:00]} d6 {[%emt 0:00:00]} 3. d4 {[%emt 0:00:03]} exd4 {[%emt 0:00:00]} 4. Nxd4 {[%emt 0:00:09]} Nf6 {[%emt 0:00:00]} 5. Nc3 {[%emt 0:00:22]} Be7 {[%emt 0:00:00]} 6. g3 {[%emt 0:00:46]} O-O {[%emt 0:01:15]} 7. Bg2 {[%emt 0:00:08] C41: Philidor Defence} Re8 {[%emt 0:04:03]} 8. O-O {[%emt 0:00:19]} Bf8 {[%emt 0:00:03]} 9. h3 {[%emt 0:00:53]} c5 {[%emt 0:01:53]} (9... Nbd7 10. Re1 c5 11. Nf5 Ne5 12. Bg5 h6 13. Bxf6 Qxf6 14. Nd5 Qd8 {½-½ (32) Oparin,G (2602)-Mamedyarov,S (2799) Moscow 2017}) 10. Nde2 {[%emt 0:01:03]} Nc6 {[%emt 0:01:08]} 11. g4 {[%emt 0:06:43]} h5 $146 {[%emt 0:27:58]} ({Predecessor:} 11... Be6 12. g5 Nd7 13. Ng3 f6 14. h4 Rb8 {0-1 (40) Hillarp Persson,T (2567)-Mamedjarova,Z (2342) Hoogeveen 2007}) 12. g5 {[%emt 0:03:06]} Nh7 {[%emt 0:00:03]} 13. f4 {[%emt 0:01:42]} f5 {[%emt 0:09:06]} 14. exf5 {[%emt 0:02:06]} Bxf5 {[%emt 0:00:10]} 15. Ng3 {[%emt 0:00:53]} Qd7 {[%emt 0:04:08]} 16. Nxf5 {[%emt 0:02:52]} Qxf5 {[%emt 0:00:03]} 17. Qxh5 {[%emt 0:07:07]} Nb4 {[%emt 0:05:01]} 18. a3 {[%emt 0:03:04]} g6 {[%emt 0:02:27]} 19. Qd1 {[%emt 0:05:32]} Nxc2 {[%emt 0:00:37]} 20. Qd5+ {[%emt 0:01:37]} Qxd5 {[%emt 0:00:47]} 21. Bxd5+ {[%emt 0:00:20]} Kh8 {[%emt 0:00:08]} 22. Rb1 {[%emt 0:01:44]} Bg7 {[%emt 0:07:57]} 23. Bf7 {[%emt 0:04:34]} Re7 {[%emt 0:00:50]} 24. Bxg6 {[%emt 0:00:25]} Nxa3 {[%emt 0:00:08]} 25. Nd5 {[%emt 0:04:35]} Bd4+ {[%emt 0:07:12]} 26. Kh1 {[%emt 0:03:23]} Rg7 {[%emt 0:00:04]} 27. Bxh7 {[%emt 0:01:33]} Nxb1 {[%emt 0:00:05]} 28. Bxb1 {[%emt 0:00:14]} Re8 {[%emt 0:03:14]} 29. Bd3 {[%emt 0:02:55]} b5 {[%emt 0:04:36]} 30. b3 {[%emt 0:06:08]} Rb7 {[%emt 0:10:07]} 31. Bd2 {[%emt 0:02:10]} Rc8 {[%emt 0:01:09]} 32. Ne3 {[%emt 0:06:07]} a5 {[%emt 0:05:21]} 33. Nf5 {[%emt 0:00:30]} Rh7 $18 {[%emt 0:02:29]} 34. Kg2 {[%emt 0:00:59]} c4 {[%emt 0:01:40]} 35. bxc4 {[%emt 0:03:38]} bxc4 {[%emt 0:00:04]} 36. Be4 {[%emt 0:01:32]} Bb2 {[%emt 0:03:13]} 37. Nxd6 {[%emt 0:04:23]} Rd8 {[%emt 0:00:09]} 38. Nxc4 {[%emt 0:00:33]} Re7 {[%emt 0:00:31]} 39. Bxa5 {[%emt 0:02:09]} Rxe4 {[%emt 0:00:40]} 40. Bxd8 {[%emt 0:01:52]} Rxc4 {[%emt 0:00:03]} 41. Be7 {[%emt 0:32:25]} Kg7 {[%emt 0:30:29]} 42. Rf2 {[%emt 0:01:20]} Bc1 {[%emt 0:00:23]} 43. f5 {[%emt 0:01:50]} Kf7 {[%emt 0:00:11]} 44. Bf6 {[%emt 0:00:33]} Be3 {[%emt 0:00:00]} 45. Re2 {[%emt 0:00:00]} Bc5 {[%emt 0:00:00]} 46. Be5 {[%emt 0:00:00]} Kg8 {[%emt 0:00:00]} 47. g6 {[%emt 0:00:00]} Bf8 {[%emt 0:00:00]} 48. f6 {[%emt 0:00:00]} Bg7 {[%emt 0:00:00]} 49. f7+ {[%emt 0:00:00]} Kf8 {[%emt 0:00:00]} 50. Bd6# {[%emt 0:00:00]} 1-0